[Event "*** Titled Tuesday Blitz"]
[Site "Chess.com"]
[Date "2019.07.02"]
[Round "2"]
[White "marcodobrikov"]
[Black "Oleksandr_Bortnyk"]
[Result "0-1"]
[WhiteElo "2497"]
[BlackElo "2939"]
[TimeControl "180+2"]
[EndTime "13:24:30 PDT"]
[Termination "Oleksandr_Bortnyk won by resignation"]

1. e4 {[%clk 0:03:01.9]} 1... g6 {[%clk 0:02:56.3]} 2. d4 {[%clk 0:03:01]} 2...
Bg7 {[%clk 0:02:58.2]} 3. Nc3 {[%clk 0:03:01.8]} 3... d6 {[%clk 0:02:59.4]} 4.
Be3 {[%clk 0:03:02.5]} 4... a6 {[%clk 0:02:59.9]} 5. Qd2 {[%clk 0:02:59.3]} 5...
b5 {[%clk 0:03:00.1]} 6. f3 {[%clk 0:03:00]} 6... Nd7 {[%clk 0:02:57.3]} 7.
O-O-O {[%clk 0:03:00.5]} 7... Bb7 {[%clk 0:02:46.1]} 8. h4 {[%clk 0:03:00.4]}
8... h5 {[%clk 0:02:40.2]} 9. Nh3 {[%clk 0:03:00.3]} 9... e6 {[%clk 0:02:30.4]}
10. Ng5 {[%clk 0:03:00.2]} 10... Ne7 {[%clk 0:02:29.9]} 11. Kb1 {[%clk 0:02:56]}
11... Nb6 {[%clk 0:02:29.1]} 12. Bd3 {[%clk 0:02:53]} 12... Qd7 {[%clk
0:01:31.4]} 13. Ne2 {[%clk 0:02:50.6]} 13... Nc4 {[%clk 0:01:31]} 14. Bxc4
{[%clk 0:02:49]} 14... bxc4 {[%clk 0:01:32.9]} 15. Qb4 {[%clk 0:02:46.2]} 15...
Qb5 {[%clk 0:01:33.6]} 16. c3 {[%clk 0:02:24.4]} 16... O-O {[%clk 0:01:28.4]}
17. g4 {[%clk 0:02:17.8]} 17... hxg4 {[%clk 0:01:28.5]} 18. fxg4 {[%clk
0:02:13.6]} 18... Qxb4 {[%clk 0:01:29.3]} 19. cxb4 {[%clk 0:02:13.1]} 19... f6
{[%clk 0:01:08.9]} 20. Nxe6 {[%clk 0:02:13]} 20... Bxe4+ {[%clk 0:01:10.2]} 21.
Kc1 {[%clk 0:02:13]} 21... Nd5 {[%clk 0:01:12.1]} 22. Rh3 {[%clk 0:02:05.7]}
22... Rfe8 {[%clk 0:01:07.6]} 23. Nxg7 {[%clk 0:02:02.6]} 23... Kxg7 {[%clk
0:01:09.5]} 24. Rg3 {[%clk 0:01:54.4]} 24... Bc2 {[%clk 0:00:58.8]} 25. Re1
{[%clk 0:01:17.7]} 25... Nxb4 {[%clk 0:00:27.4]} 26. Kd2 {[%clk 0:01:16.2]}
26... Bd3 {[%clk 0:00:25.8]} 27. Nc3 {[%clk 0:01:15.6]} 27... Rab8 {[%clk
0:00:23.4]} 28. Bf2 {[%clk 0:00:53.4]} 28... Rxe1 {[%clk 0:00:22.8]} 29. Bxe1
{[%clk 0:00:54.2]} 29... Nxa2 {[%clk 0:00:24.4]} 30. g5 {[%clk 0:00:37.8]} 30...
Rxb2+ {[%clk 0:00:24.5]} 31. Ke3 {[%clk 0:00:38.5]} 31... Nxc3 {[%clk
0:00:22.3]} 32. Bxc3 {[%clk 0:00:37.6]} 32... Re2+ {[%clk 0:00:23]} 33. Kf3
{[%clk 0:00:37]} 33... f5 {[%clk 0:00:23.3]} 34. d5+ {[%clk 0:00:35.9]} 34...
Kf7 {[%clk 0:00:23.3]} 35. Rg1 {[%clk 0:00:34.1]} 35... Rc2 {[%clk 0:00:24.3]}
36. Bd4 {[%clk 0:00:32.9]} 36... Be4+ {[%clk 0:00:25.6]} 37. Ke3 {[%clk
0:00:30.3]} 37... Bxd5 {[%clk 0:00:27.5]} 38. Ra1 {[%clk 0:00:28.2]} 38... Rh2
{[%clk 0:00:25.6]} 39. Rxa6 {[%clk 0:00:23.4]} 39... f4+ {[%clk 0:00:24.3]} 40.
Kxf4 {[%clk 0:00:19.6]} 40... Rxh4+ {[%clk 0:00:26.2]} 41. Kg3 {[%clk 0:00:20]}
41... Rxd4 {[%clk 0:00:26.9]} 0-1

[Event "*** Titled Tuesday Blitz"]
[Site "Chess.com"]
[Date "2019.07.02"]
[Round "2"]
[White "ethylalcohol"]
[Black "Nastasia28"]
[Result "1-0"]
[WhiteElo "2093"]
[BlackElo "1856"]
[TimeControl "180+2"]
[EndTime "13:24:39 PDT"]
[Termination "ethylalcohol won by checkmate"]

1. d4 {[%clk 0:03:01.9]} 1... Nf6 {[%clk 0:02:54.2]} 2. Nf3 {[%clk 0:03:02.4]}
2... e6 {[%clk 0:02:53.1]} 3. Bf4 {[%clk 0:03:02.6]} 3... b6 {[%clk 0:02:52.9]}
4. e3 {[%clk 0:03:02.2]} 4... Bb7 {[%clk 0:02:51.8]} 5. Be2 {[%clk 0:02:45.5]}
5... h6 {[%clk 0:02:36.5]} 6. h3 {[%clk 0:02:41.2]} 6... c5 {[%clk 0:02:36.1]}
7. Nbd2 {[%clk 0:02:20.9]} 7... Nc6 {[%clk 0:02:30.6]} 8. Nc4 {[%clk 0:02:12.5]}
8... d5 {[%clk 0:02:28.4]} 9. Nce5 {[%clk 0:02:12]} 9... Nd7 {[%clk 0:02:20.4]}
10. Bb5 {[%clk 0:01:58.7]} 10... Rc8 {[%clk 0:02:07.6]} 11. Nxd7 {[%clk
0:01:15.5]} 11... Qxd7 {[%clk 0:02:03.5]} 12. Ne5 {[%clk 0:01:15.7]} 12... Qe7
{[%clk 0:01:55.1]} 13. O-O {[%clk 0:01:08.7]} 13... a6 {[%clk 0:01:55.6]} 14.
Nxc6 {[%clk 0:01:03.1]} 14... Bxc6 {[%clk 0:01:50.6]} 15. Bxa6 {[%clk
0:01:03.8]} 15... Ra8 {[%clk 0:01:48.7]} 16. Be2 {[%clk 0:00:56.7]} 16... g5
{[%clk 0:01:46.3]} 17. Be5 {[%clk 0:00:55.5]} 17... f6 {[%clk 0:01:45.3]} 18.
Bh5+ {[%clk 0:00:55.1]} 18... Kd7 {[%clk 0:01:44.1]} 19. Bg3 {[%clk 0:00:52.2]}
19... Bg7 {[%clk 0:01:40.1]} 20. c4 {[%clk 0:00:52.2]} 20... cxd4 {[%clk
0:01:20.2]} 21. cxd5 {[%clk 0:00:48.2]} 21... Bxd5 {[%clk 0:01:13.5]} 22. Rc1
{[%clk 0:00:42.3]} 22... Rhc8 {[%clk 0:01:01.9]} 23. Qxd4 {[%clk 0:00:41.4]}
23... f5 {[%clk 0:00:43.8]} 24. Be5 {[%clk 0:00:42.1]} 24... Bxe5 {[%clk
0:00:37.7]} 25. Qxe5 {[%clk 0:00:42.7]} 25... Rc5 {[%clk 0:00:38.2]} 26. Rfd1
{[%clk 0:00:34.9]} 26... Rxc1 {[%clk 0:00:37.3]} 27. Rxc1 {[%clk 0:00:35.1]}
27... Rc8 {[%clk 0:00:38.4]} 28. Rd1 {[%clk 0:00:28.7]} 28... Rc5 {[%clk
0:00:23.7]} 29. e4 {[%clk 0:00:27.7]} 29... fxe4 {[%clk 0:00:24.8]} 30. Bg4
{[%clk 0:00:28]} 30... Kc6 {[%clk 0:00:21.5]} 31. b4 {[%clk 0:00:26.7]} 31...
Rb5 {[%clk 0:00:17.6]} 32. Qc3+ {[%clk 0:00:26.2]} 32... Kb7 {[%clk 0:00:18.2]}
33. Rc1 {[%clk 0:00:24.7]} 33... Qd7 {[%clk 0:00:18.7]} 34. a4 {[%clk
0:00:24.7]} 34... Rc5 {[%clk 0:00:15.5]} 35. bxc5 {[%clk 0:00:25.1]} 35... Qxa4
{[%clk 0:00:16.8]} 36. Qg7+ {[%clk 0:00:25]} 36... Ka6 {[%clk 0:00:16.3]} 37.
cxb6 {[%clk 0:00:25.8]} 37... Kxb6 {[%clk 0:00:11.9]} 38. Qc7+ {[%clk
0:00:25.9]} 38... Ka6 {[%clk 0:00:12.4]} 39. Be2+ {[%clk 0:00:26.6]} 39... Bc4
{[%clk 0:00:12.3]} 40. Bxc4+ {[%clk 0:00:27.5]} 40... Qxc4 {[%clk 0:00:12.8]}
41. Qxc4+ {[%clk 0:00:28.2]} 41... Kb6 {[%clk 0:00:13.6]} 42. Rb1+ {[%clk
0:00:28.3]} 42... Ka5 {[%clk 0:00:14.5]} 43. Qa2# {[%clk 0:00:29]} 1-0

[Event "*** Titled Tuesday Blitz"]
[Site "Chess.com"]
[Date "2019.07.02"]
[Round "2"]
[White "senecacrane"]
[Black "Hamisandwich"]
[Result "1-0"]
[WhiteElo "2336"]
[BlackElo "2448"]
[TimeControl "180+2"]
[EndTime "13:24:41 PDT"]
[Termination "senecacrane won by resignation"]

1. Nf3 {[%clk 0:03:01.9]} 1... Nf6 {[%clk 0:02:57.4]} 2. e3 {[%clk 0:03:01.6]}
2... g6 {[%clk 0:02:53.4]} 3. c4 {[%clk 0:03:00.8]} 3... Bg7 {[%clk 0:02:54.2]}
4. d4 {[%clk 0:03:01.5]} 4... O-O {[%clk 0:02:55.4]} 5. Be2 {[%clk 0:03:01]}
5... d6 {[%clk 0:02:56.6]} 6. O-O {[%clk 0:03:01.5]} 6... b6 {[%clk 0:02:52.5]}
7. Nc3 {[%clk 0:03:00.8]} 7... Bb7 {[%clk 0:02:53.9]} 8. Qc2 {[%clk 0:02:56.7]}
8... Nbd7 {[%clk 0:02:49.8]} 9. Rd1 {[%clk 0:02:56.4]} 9... Qe8 {[%clk
0:02:29.6]} 10. b3 {[%clk 0:02:53]} 10... e5 {[%clk 0:02:29.3]} 11. dxe5 {[%clk
0:02:29.1]} 11... Nxe5 {[%clk 0:02:27.9]} 12. Nxe5 {[%clk 0:02:20.2]} 12... Qxe5
{[%clk 0:02:29.8]} 13. Bb2 {[%clk 0:02:19.6]} 13... Ne4 {[%clk 0:02:18]} 14.
Nxe4 {[%clk 0:01:35.6]} 14... Qxb2 {[%clk 0:01:53.4]} 15. Qxb2 {[%clk
0:01:36.5]} 15... Bxb2 {[%clk 0:01:55.3]} 16. Rab1 {[%clk 0:01:37.9]} 16... Bg7
{[%clk 0:01:57]} 17. Ng3 {[%clk 0:01:35.2]} 17... Rfe8 {[%clk 0:01:57.3]} 18.
Bf3 {[%clk 0:01:34.9]} 18... Bxf3 {[%clk 0:01:57.2]} 19. gxf3 {[%clk 0:01:36.8]}
19... a5 {[%clk 0:01:58.6]} 20. a4 {[%clk 0:01:34]} 20... f5 {[%clk 0:01:54.1]}
21. Ne2 {[%clk 0:01:26.6]} 21... Kf7 {[%clk 0:01:53.9]} 22. Nf4 {[%clk
0:01:25.5]} 22... Rab8 {[%clk 0:01:42.6]} 23. Nd5 {[%clk 0:00:59.6]} 23... c6
{[%clk 0:01:43.5]} 24. Nf4 {[%clk 0:00:59.9]} 24... Be5 {[%clk 0:01:45.1]} 25.
Nd3 {[%clk 0:00:59]} 25... Bf6 {[%clk 0:01:17.4]} 26. Nf4 {[%clk 0:00:59.4]}
26... g5 {[%clk 0:01:10.2]} 27. Nh5 {[%clk 0:00:36.3]} 27... Be7 {[%clk
0:01:11]} 28. Ng3 {[%clk 0:00:35.6]} 28... Ke6 {[%clk 0:01:03.7]} 29. Ne2 {[%clk
0:00:32.4]} 29... Bf6 {[%clk 0:00:59.8]} 30. Nd4+ {[%clk 0:00:33]} 30... Bxd4
{[%clk 0:01:00.8]} 31. Rxd4 {[%clk 0:00:34.9]} 31... Red8 {[%clk 0:00:50.8]} 32.
Rbd1 {[%clk 0:00:34.2]} 32... h6 {[%clk 0:00:51.1]} 33. Kf1 {[%clk 0:00:32.7]}
33... d5 {[%clk 0:00:51.2]} 34. cxd5+ {[%clk 0:00:29.3]} 34... Rxd5 {[%clk
0:00:53.1]} 35. Rxd5 {[%clk 0:00:30.5]} 35... cxd5 {[%clk 0:00:55]} 36. Rc1
{[%clk 0:00:29.7]} 36... Kd6 {[%clk 0:00:56.2]} 37. Ke2 {[%clk 0:00:30.6]} 37...
Re8 {[%clk 0:00:54.8]} 38. Kd3 {[%clk 0:00:30.6]} 38... f4 {[%clk 0:00:54.9]}
39. Rc2 {[%clk 0:00:23.1]} 39... Rf8 {[%clk 0:00:52.4]} 40. e4 {[%clk
0:00:22.6]} 40... dxe4+ {[%clk 0:00:51.2]} 41. fxe4 {[%clk 0:00:24]} 41... Ke5
{[%clk 0:00:45.5]} 42. f3 {[%clk 0:00:20.6]} 42... g4 {[%clk 0:00:43.7]} 43.
fxg4 {[%clk 0:00:20.9]} 43... Rd8+ {[%clk 0:00:45.3]} 44. Ke2 {[%clk 0:00:21.6]}
44... Kxe4 {[%clk 0:00:46.9]} 45. Rc4+ {[%clk 0:00:23.1]} 45... Ke5 {[%clk
0:00:48.4]} 46. Rc6 {[%clk 0:00:23.2]} 46... h5 {[%clk 0:00:44.1]} 47. gxh5
{[%clk 0:00:23.7]} 47... Rg8 {[%clk 0:00:39.4]} 48. Rxb6 {[%clk 0:00:24.7]}
48... Rg2+ {[%clk 0:00:39.2]} 49. Kf3 {[%clk 0:00:26]} 49... Rxh2 {[%clk
0:00:41.1]} 50. Rb5+ {[%clk 0:00:26.1]} 50... Kd4 {[%clk 0:00:37.3]} 51. Kxf4
{[%clk 0:00:28]} 1-0

[Event "*** Titled Tuesday Blitz"]
[Site "Chess.com"]
[Date "2019.07.02"]
[Round "2"]
[White "DoHoChess"]
[Black "vova-79"]
[Result "1/2-1/2"]
[WhiteElo "2561"]
[BlackElo "2403"]
[TimeControl "180+2"]
[EndTime "13:24:42 PDT"]
[Termination "Game drawn by repetition"]

1. d4 {[%clk 0:02:57.4]} 1... d5 {[%clk 0:02:42.7]} 2. Nc3 {[%clk 0:02:57.2]}
2... e6 {[%clk 0:02:35.7]} 3. Bf4 {[%clk 0:02:55.8]} 3... Nf6 {[%clk 0:02:33.5]}
4. Nb5 {[%clk 0:02:56]} 4... Na6 {[%clk 0:02:32.4]} 5. a3 {[%clk 0:02:56.7]}
5... c6 {[%clk 0:02:31.8]} 6. Nc3 {[%clk 0:02:56.7]} 6... Bd6 {[%clk 0:02:32.3]}
7. e3 {[%clk 0:02:57.1]} 7... O-O {[%clk 0:02:31.3]} 8. Nf3 {[%clk 0:02:57.9]}
8... Nc7 {[%clk 0:02:28.6]} 9. Ne5 {[%clk 0:02:58.9]} 9... Qe7 {[%clk
0:02:23.4]} 10. g4 {[%clk 0:02:59.3]} 10... Nd7 {[%clk 0:02:23.4]} 11. h4 {[%clk
0:02:49]} 11... f6 {[%clk 0:02:22.7]} 12. Nxd7 {[%clk 0:02:46.7]} 12... Bxd7
{[%clk 0:02:24.6]} 13. Bxd6 {[%clk 0:02:43.3]} 13... Qxd6 {[%clk 0:02:25.9]} 14.
g5 {[%clk 0:02:44.1]} 14... e5 {[%clk 0:02:19.5]} 15. Bh3 {[%clk 0:02:38.7]}
15... Rae8 {[%clk 0:02:08.1]} 16. Bxd7 {[%clk 0:02:39.1]} 16... Qxd7 {[%clk
0:02:08.5]} 17. Ne2 {[%clk 0:01:49.2]} 17... fxg5 {[%clk 0:02:01.8]} 18. Ng3
{[%clk 0:01:28.3]} 18... g4 {[%clk 0:01:25.6]} 19. dxe5 {[%clk 0:01:16.1]} 19...
Rxe5 {[%clk 0:01:23.7]} 20. Qd4 {[%clk 0:01:17.7]} 20... Re7 {[%clk 0:01:12.3]}
21. h5 {[%clk 0:01:12.2]} 21... h6 {[%clk 0:00:59.9]} 22. Rh4 {[%clk 0:01:01.7]}
22... Ne6 {[%clk 0:00:44.2]} 23. Qxg4 {[%clk 0:01:01.7]} 23... Ng5 {[%clk
0:00:44.6]} 24. Qxd7 {[%clk 0:00:56.5]} 24... Rxd7 {[%clk 0:00:44.5]} 25. Ke2
{[%clk 0:00:47.5]} 25... Rdf7 {[%clk 0:00:34.2]} 26. f4 {[%clk 0:00:41]} 26...
Ne6 {[%clk 0:00:30]} 27. c3 {[%clk 0:00:40.5]} 27... Nc5 {[%clk 0:00:26.5]} 28.
Rg4 {[%clk 0:00:30.7]} 28... Kh7 {[%clk 0:00:26.9]} 29. Rg1 {[%clk 0:00:29.5]}
29... Re8 {[%clk 0:00:18.6]} 30. Rg6 {[%clk 0:00:21.2]} 30... Ne4 {[%clk
0:00:14.4]} 31. Nxe4 {[%clk 0:00:21.6]} 31... Rxe4 {[%clk 0:00:16]} 32. Kf3
{[%clk 0:00:22.9]} 32... Ree7 {[%clk 0:00:15.8]} 33. Rd6 {[%clk 0:00:22.4]}
33... Re8 {[%clk 0:00:15.2]} 34. Rgg6 {[%clk 0:00:23.3]} 34... Rfe7 {[%clk
0:00:15.7]} 35. Kg4 {[%clk 0:00:22.9]} 35... Rxe3 {[%clk 0:00:14.8]} 36. Rd7
{[%clk 0:00:24.4]} 36... R3e7 {[%clk 0:00:14.8]} 37. Rgd6 {[%clk 0:00:26.3]}
37... Kg8 {[%clk 0:00:14.3]} 38. b4 {[%clk 0:00:27.9]} 38... Kf7 {[%clk
0:00:14.9]} 39. a4 {[%clk 0:00:28.5]} 39... Rxd7 {[%clk 0:00:15.4]} 40. Rxd7+
{[%clk 0:00:29.7]} 40... Re7 {[%clk 0:00:17.3]} 41. Rd8 {[%clk 0:00:31.2]} 41...
Re8 {[%clk 0:00:18.2]} 42. Rd7+ {[%clk 0:00:32.4]} 42... Re7 {[%clk 0:00:18.5]}
43. Rd8 {[%clk 0:00:33.6]} 43... Re8 {[%clk 0:00:18.4]} 44. Rd7+ {[%clk
0:00:34.4]} 1/2-1/2

[Event "*** Titled Tuesday Blitz"]
[Site "Chess.com"]
[Date "2019.07.02"]
[Round "2"]
[White "DonPreuss"]
[Black "Maili15"]
[Result "1-0"]
[WhiteElo "2185"]
[BlackElo "2251"]
[TimeControl "180+2"]
[EndTime "13:24:47 PDT"]
[Termination "DonPreuss won by resignation"]

1. d4 {[%clk 0:03:01.9]} 1... d5 {[%clk 0:03:00.7]} 2. e4 {[%clk 0:03:02.5]}
2... dxe4 {[%clk 0:03:00.7]} 3. Nc3 {[%clk 0:03:04]} 3... Bf5 {[%clk 0:02:58.3]}
4. f3 {[%clk 0:03:04.7]} 4... Nf6 {[%clk 0:02:52.1]} 5. f4 {[%clk 0:03:04.3]}
5... e6 {[%clk 0:02:47.8]} 6. Be2 {[%clk 0:02:52.3]} 6... Nbd7 {[%clk
0:02:38.9]} 7. g4 {[%clk 0:02:53]} 7... Nxg4 {[%clk 0:02:31.9]} 8. h4 {[%clk
0:02:46.8]} 8... Ngf6 {[%clk 0:02:27.4]} 9. Be3 {[%clk 0:02:47.6]} 9... Be7
{[%clk 0:02:25.7]} 10. Qd2 {[%clk 0:02:48.9]} 10... Nd5 {[%clk 0:02:23.3]} 11.
O-O-O {[%clk 0:02:49.7]} 11... Bxh4 {[%clk 0:02:12.7]} 12. Nh3 {[%clk
0:02:44.4]} 12... c6 {[%clk 0:02:04.5]} 13. Ng5 {[%clk 0:02:44.9]} 13... Bxg5
{[%clk 0:02:02.6]} 14. fxg5 {[%clk 0:02:46.8]} 14... N7b6 {[%clk 0:01:53.6]} 15.
a4 {[%clk 0:02:31]} 15... Nxc3 {[%clk 0:01:52.4]} 16. Qxc3 {[%clk 0:02:31.7]}
16... Nxa4 {[%clk 0:01:51.2]} 17. Qb3 {[%clk 0:02:33.6]} 17... Nb6 {[%clk
0:01:47.7]} 18. c4 {[%clk 0:02:31.9]} 18... Qc7 {[%clk 0:01:44.2]} 19. Kb1
{[%clk 0:02:21.5]} 19... a5 {[%clk 0:01:44.3]} 20. d5 {[%clk 0:02:18.9]} 20...
Nd7 {[%clk 0:01:37.7]} 21. d6 {[%clk 0:02:13.1]} 21... Qc8 {[%clk 0:01:24.3]}
22. c5 {[%clk 0:02:12.7]} 22... Qb8 {[%clk 0:01:18]} 23. Qc3 {[%clk 0:02:11.2]}
23... e5 {[%clk 0:01:11.5]} 24. Rdf1 {[%clk 0:02:03.9]} 24... Be6 {[%clk
0:01:06.7]} 25. Bc4 {[%clk 0:02:01.8]} 25... Nf8 {[%clk 0:01:00.4]} 26. d7+
{[%clk 0:01:52]} 26... Kxd7 {[%clk 0:00:55.2]} 27. Rd1+ {[%clk 0:01:49.4]} 27...
Ke7 {[%clk 0:00:50.8]} 28. g6 {[%clk 0:01:46]} 28... Nxg6 {[%clk 0:00:39.3]} 29.
Bxe6 {[%clk 0:01:46]} 29... Kxe6 {[%clk 0:00:37.1]} 30. Rd6+ {[%clk 0:01:44.2]}
30... Ke7 {[%clk 0:00:36.7]} 31. Rhd1 {[%clk 0:01:37.2]} 31... Rd8 {[%clk
0:00:36.5]} 32. Rxd8 {[%clk 0:01:36.7]} 32... Qxd8 {[%clk 0:00:36.6]} 33. Rxd8
{[%clk 0:01:38.6]} 33... Rxd8 {[%clk 0:00:28.7]} 34. Qxa5 {[%clk 0:01:39]} 34...
h6 {[%clk 0:00:26.1]} 35. Qb4 {[%clk 0:01:30.9]} 35... f5 {[%clk 0:00:25.7]} 36.
Qxb7+ {[%clk 0:01:30.4]} 36... Rd7 {[%clk 0:00:25.9]} 37. Qxc6 {[%clk
0:01:31.2]} 37... Nf8 {[%clk 0:00:26.8]} 38. b4 {[%clk 0:01:22.1]} 38... f4
{[%clk 0:00:24.5]} 39. Bf2 {[%clk 0:01:20.6]} 39... e3 {[%clk 0:00:25]} 40. Bh4+
{[%clk 0:01:11.9]} 40... g5 {[%clk 0:00:25.5]} 41. Qxh6 {[%clk 0:00:55.2]} 41...
gxh4 {[%clk 0:00:26.4]} 42. Qxh4+ {[%clk 0:00:56.1]} 42... Ke8 {[%clk
0:00:27.8]} 43. Kc2 {[%clk 0:00:53]} 43... Rd2+ {[%clk 0:00:27.6]} 44. Kc3
{[%clk 0:00:53.6]} 44... Ne6 {[%clk 0:00:24.2]} 45. Qf6 {[%clk 0:00:49.7]} 45...
Kd7 {[%clk 0:00:21.6]} 46. Qf7+ {[%clk 0:00:49.7]} 46... Kc8 {[%clk 0:00:21.7]}
47. Qxe6+ {[%clk 0:00:50.4]} 47... Kb7 {[%clk 0:00:22.9]} 48. Qxe5 {[%clk
0:00:50.1]} 48... Rd7 {[%clk 0:00:21.5]} 49. Qxf4 {[%clk 0:00:48.5]} 49... Re7
{[%clk 0:00:21.2]} 50. Qf1 {[%clk 0:00:44]} 50... e2 {[%clk 0:00:22.3]} 51. Qe1
{[%clk 0:00:45]} 51... Kc6 {[%clk 0:00:23]} 52. Kd2 {[%clk 0:00:45.8]} 52... Kb5
{[%clk 0:00:20.8]} 53. Qxe2+ {[%clk 0:00:46.3]} 53... Rxe2+ {[%clk 0:00:22.7]}
54. Kxe2 {[%clk 0:00:47.4]} 1-0

[Event "*** Titled Tuesday Blitz"]
[Site "Chess.com"]
[Date "2019.07.02"]
[Round "2"]
[White "Vamostodorecto"]
[Black "PotapovaM"]
[Result "1-0"]
[WhiteElo "2411"]
[BlackElo "2490"]
[TimeControl "180+2"]
[EndTime "13:24:51 PDT"]
[Termination "Vamostodorecto won on time"]

1. d4 {[%clk 0:03:01.9]} 1... Nf6 {[%clk 0:02:59.7]} 2. c4 {[%clk 0:03:02.4]}
2... c5 {[%clk 0:03:00.2]} 3. d5 {[%clk 0:03:02.5]} 3... b5 {[%clk 0:03:01.6]}
4. cxb5 {[%clk 0:03:04.4]} 4... g6 {[%clk 0:03:02.7]} 5. Nc3 {[%clk 0:03:04.6]}
5... a6 {[%clk 0:03:04.3]} 6. e4 {[%clk 0:03:06.2]} 6... d6 {[%clk 0:03:05.1]}
7. bxa6 {[%clk 0:03:06.2]} 7... Bg7 {[%clk 0:03:05.6]} 8. Nf3 {[%clk 0:03:07.6]}
8... Qa5 {[%clk 0:03:03.9]} 9. Bd2 {[%clk 0:02:52.1]} 9... Bxa6 {[%clk
0:03:00.8]} 10. Bxa6 {[%clk 0:02:48]} 10... Qxa6 {[%clk 0:03:02.7]} 11. Qe2
{[%clk 0:02:49.1]} 11... Qxe2+ {[%clk 0:03:00.1]} 12. Kxe2 {[%clk 0:02:51]}
12... O-O {[%clk 0:03:00.6]} 13. a4 {[%clk 0:02:45.8]} 13... Na6 {[%clk
0:02:52.1]} 14. b3 {[%clk 0:02:33.2]} 14... Rfb8 {[%clk 0:02:52]} 15. Rab1
{[%clk 0:02:33.1]} 15... Nb4 {[%clk 0:02:35.3]} 16. Ne1 {[%clk 0:02:26.9]} 16...
Ng4 {[%clk 0:02:23.8]} 17. f3 {[%clk 0:02:23.9]} 17... Ne5 {[%clk 0:02:22.9]}
18. Nb5 {[%clk 0:02:10.1]} 18... Na6 {[%clk 0:02:14.4]} 19. Nd3 {[%clk
0:02:05.3]} 19... Nd7 {[%clk 0:01:54.5]} 20. Ba5 {[%clk 0:01:57.6]} 20... Rb7
{[%clk 0:01:16.5]} 21. f4 {[%clk 0:01:52]} 21... c4 {[%clk 0:01:16.6]} 22. bxc4
{[%clk 0:01:50.4]} 22... Nac5 {[%clk 0:01:17.5]} 23. Nxc5 {[%clk 0:01:36.8]}
23... Nxc5 {[%clk 0:01:19.4]} 24. Bc3 {[%clk 0:01:00.6]} 24... Rxb5 {[%clk
0:00:59.9]} 25. axb5 {[%clk 0:01:00.5]} 25... Bxc3 {[%clk 0:01:00.5]} 26. b6
{[%clk 0:00:50]} 26... Rb8 {[%clk 0:00:57.3]} 27. Kf3 {[%clk 0:00:46]} 27... Ba5
{[%clk 0:00:54.5]} 28. b7 {[%clk 0:00:28.4]} 28... Rxb7 {[%clk 0:00:51.8]} 29.
Rxb7 {[%clk 0:00:28.3]} 29... Nxb7 {[%clk 0:00:53.4]} 30. Rb1 {[%clk 0:00:30]}
30... Nc5 {[%clk 0:00:52.6]} 31. e5 {[%clk 0:00:27.2]} 31... Bc7 {[%clk
0:00:50.2]} 32. exd6 {[%clk 0:00:17.8]} 32... exd6 {[%clk 0:00:40.2]} 33. g4
{[%clk 0:00:17.4]} 33... Kf8 {[%clk 0:00:40.1]} 34. Re1 {[%clk 0:00:16.9]} 34...
Nd3 {[%clk 0:00:38.9]} 35. Re3 {[%clk 0:00:16]} 35... Nc5 {[%clk 0:00:39.4]} 36.
h4 {[%clk 0:00:15.6]} 36... h5 {[%clk 0:00:36.2]} 37. gxh5 {[%clk 0:00:15.6]}
37... gxh5 {[%clk 0:00:38.1]} 38. Re1 {[%clk 0:00:16.8]} 38... Bd8 {[%clk
0:00:39.3]} 39. Rg1 {[%clk 0:00:15.3]} 39... Bf6 {[%clk 0:00:16.5]} 40. Re1
{[%clk 0:00:13.4]} 1-0